bitfinex/quotes_ETHUSD_20240702
["timestamp","ask_amount","ask_price","bid_price","bid_amount"]
[1719894727252,2.88434,3467.0,3466.5,0.817]
[1719894727449,2.88434,3467.0,3466.7,0.817]
[1719894727847,2.88442,3466.9,3466.7,0.817]
[1719894728847,2.88442,3466.9,3466.5,0.817]
[1719894731510,2.88461,3466.7,3466.2,2.2704]
[1719894731663,5.76927,3466.7,3466.4,0.817]
[1719894731998,2.88467,3466.6,3466.4,0.817]
[1719894733191,2.88455,3466.8,3466.4,0.817]
[1719894733398,2.88459,3466.7,3466.4,1.12574]
[1719894733689,2.8847,3466.6,3466.4,1.12574]
[1719894735380,2.88475,3466.5,3466.0,0.31121]
[1719894735593,2.88475,3466.5,3466.2,0.817]
[1719894735757,2.88483,3466.4,3466.2,0.817]
[1719894735962,2.88483,3466.4,3466.0,3.31121]
[1719894735963,2.88483,3466.4,3465.9,2.4319]
[1719894736157,2.885,3466.2,3465.9,0.562625]
[1719894736373,2.885,3466.2,3466.0,0.817]
[1719894742835,2.88469,3466.6,3466.0,0.817]
[1719894743126,2.88469,3466.6,3466.3,0.817]
[1719894743284,7.36,3467.4,3466.5,0.817]
[1719894743484,2.88447,3466.9,3466.5,0.817]
[1719894749614,2.88451,3466.8,3466.5,0.817]
[1719894753230,2.88451,3466.8,3466.5,3.1236]
[1719894756337,2.88436,3467.0,3466.7,0.817]
[1719894758115,2.88444,3466.9,3466.7,0.817]
[1719894759025,2.88444,3466.9,3466.5,3.1236]
[1719894760828,2.8845,3466.8,3466.5,3.1236]
[1719894771260,2.8845,3466.8,3466.5,3.44172916]
[1719894777826,5.76874,3467.0,3466.5,3.44172916]
[1719894778182,2.88443,3466.9,3466.5,3.44172916]
[1719894781780,2.88443,3466.9,3466.5,2.62472916]
[1719894782087,2.88443,3466.9,3466.6,0.817]
[1719894783704,2.88443,3466.9,3466.5,3.1236]
[1719894785224,2.88451,3466.8,3466.5,3.1236]
[1719894786230,2.88451,3466.8,3466.5,0.817]
[1719894788637,2.88443,3466.9,3466.5,0.817]
[1719894796010,2.88425,3467.1,3466.5,0.817]
[1719894796344,2.88435,3467.0,3466.5,0.817]
[1719894801547,2.88435,3467.0,3466.3,5.98101]
[1719894801754,2.88435,3467.0,3466.4,0.55]
[1719894803052,2.4048,3467.4,3466.6,2.3364]
[1719894803053,2.88406,3467.4,3466.6,2.3364]
[1719894803250,0.20974996,3467.3,3466.7,0.55]
[1719894803452,0.20974996,3467.2,3466.7,0.55]
[1719894803627,2.88422,3467.2,3466.7,0.55]
[1719894804344,2.88422,3467.2,3466.8,3.2539]
[1719894805829,2.88422,3467.2,3466.7,0.55]
[1719894806035,2.88435,3467.0,3466.5,2.4821]
[1719894806236,2.88435,3467.0,3466.6,0.55]
[1719894810753,2.88442,3466.9,3466.6,0.55]
[1719894811549,2.88451,3466.8,3466.5,3.2991]
[1719894811738,2.88459,3466.7,3466.3,2.4117]
[1719894811945,2.88459,3466.7,3466.4,0.55]
[1719894813463,2.88468,3466.6,3466.4,0.55]
[1719894813826,2.88468,3466.6,3466.0,3.91699254]
[1719894814032,2.88468,3466.6,3466.3,0.817]
[1719894814243,2.88477,3466.5,3466.1,3.28929925]
[1719894814475,2.88485,3466.4,3466.1,3.28929925]
[1719894814676,2.88485,3466.4,3466.2,0.817]
[1719894830886,2.88485,3466.4,3466.1,0.55]
[1719894830887,2.88493,3466.3,3466.1,0.55]
[1719894831086,2.88493,3466.3,3466.0,1.367]
[1719894831290,2.88493,3466.3,3466.0,1.91008]
[1719894835596,2.88485,3466.4,3466.0,0.817]
[1719894835763,2.88508,3466.1,3465.9,0.817]
[1719894836608,2.88517,3466.0,3465.8,0.817]
[1719894837601,2.88491,3466.4,3465.9,2.8412]
[1719894837815,2.88491,3466.4,3466.0,0.817]
[1719894837969,2.88491,3466.4,3466.1,0.55]
[1719894838474,2.88492,3466.3,3466.1,0.55]
[1719894838687,2.88492,3466.3,3466.1,0.98233134]
[1719894841785,2.88492,3466.3,3466.1,0.55]
[1719894841994,2.88517,3466.0,3465.7,3.0]
[1719894842192,2.88517,3466.0,3465.8,0.55]
[1719894847581,2.88517,3466.0,3465.8,1.367]
[1719894847941,2.88517,3466.0,3465.8,0.817]
[1719894850325,2.88517,3466.0,3465.8,3.5235]
[1719894852663,2.88517,3466.0,3465.8,3.1418]
[1719894854346,2.88517,3466.0,3465.5,3.0]
[1719894854529,2.88517,3466.0,3465.7,0.817]
[1719894856442,2.88517,3466.0,3465.5,3.0]
[1719894856643,2.88542,3465.7,3465.0,5.4208]
[1719894856845,2.88542,3465.7,3465.3,0.817]
[1719894857169,2.88542,3465.7,3465.0,6.240104]
[1719894857170,2.88542,3465.7,3465.4,0.55]
[1719894857461,2.88542,3465.7,3465.3,0.55]
[1719894857654,2.88542,3465.7,3465.4,0.817]
[1719894858149,2.88542,3465.7,3465.0,6.240104]
[1719894858308,2.88542,3465.7,3465.1,0.55]
[1719894858512,2.88558,3465.5,3465.1,1.367]
[1719894858950,2.88558,3465.5,3464.7,2.4024]
[1719894859117,2.8858,3465.3,3464.9,0.817]
[1719894859325,2.8858,3465.3,3465.0,0.55]
[1719894859521,2.88594,3465.1,3464.4,2.463]
[1719894859723,2.88594,3465.1,3464.7,0.817]
[1719894861138,2.88594,3465.1,3464.8,0.55]
[1719894863646,2.886,3465.0,3464.8,0.55]
[1719894864124,2.886,3465.0,3464.7,0.817]
[1719894864327,2.886,3465.0,3464.8,0.55]
[1719894864564,2.886,3465.0,3464.7,0.817]
[1719894866462,2.886,3465.0,3464.4,3.586629]
[1719894866668,2.88622,3464.8,3464.5,1.367]
[1719894867078,2.88622,3464.8,3464.5,0.55]
[1719894869546,2.886,3465.0,3464.5,0.55]
[1719894869896,2.886,3465.0,3464.6,0.817]
[1719894870577,2.88612,3464.9,3464.6,0.817]
[1719894870946,2.886,3465.0,3464.6,0.817]
[1719894888385,8.23873,3465.2,3464.6,0.817]
[1719894888589,5.35283,3465.2,3464.6,0.817]
[1719894888984,2.88592,3465.1,3464.6,0.817]
[1719894893387,2.88602,3465.0,3464.6,0.817]
[1719894894706,2.88602,3465.0,3464.5,0.55]
[1719894896073,2.88617,3464.8,3464.3,5.3309]
[1719894896276,2.88617,3464.8,3464.3,2.3309]
[1719894896463,2.88617,3464.8,3464.3,3.1479]
[1719894897492,2.88617,3464.8,3464.3,0.817]
[1719894898472,2.88617,3464.8,3464.1,8.22484]
[1719894898801,2.88617,3464.8,3464.3,0.817]
[1719894899664,2.88617,3464.8,3464.2,1.372484]
[1719894899864,2.88617,3464.8,3464.2,2.189484]
[1719894900099,2.88617,3464.8,3464.2,1.372484]
[1719894900297,2.88617,3464.8,3464.3,0.817]
[1719894900602,2.88617,3464.8,3464.2,0.55]
[1719894901493,2.88628,3464.7,3464.2,0.817]
[1719894904599,2.4399,3464.9,3464.3,0.55]
[1719894904767,2.88606,3465.0,3464.6,0.817]
[1719894908809,2.3391,3465.1,3464.6,0.817]
[1719894909117,2.3395,3465.4,3464.6,3.0818]
[1719894909317,2.88583,3465.2,3464.6,3.0818]
[1719894909622,2.88583,3465.2,3464.6,4.022277]
[1719894910183,2.8856,3465.5,3464.8,0.817]
[1719894910525,2.8856,3465.5,3465.0,0.817]
[1719894911020,2.8856,3465.5,3464.8,0.817]
[1719894911171,2.88567,3465.4,3464.8,0.817]
[1719894916924,2.88576,3465.3,3464.8,0.817]
[1719894927110,2.88583,3465.2,3464.8,0.817]
[1719894928756,2.88597,3465.1,3464.6,0.940477]
[1719894929060,2.88597,3465.1,3464.7,0.817]
[1719894931411,2.88601,3465.0,3464.4,2.2706]
[1719894931752,2.88601,3465.0,3464.6,0.817]
[1719894933647,2.88592,3465.1,3464.6,0.817]
[1719894955048,2.88575,3465.3,3464.7,2.3175]
[1719894955398,2.88575,3465.3,3464.7,2.80285827]
[1719894955553,2.88556,3465.6,3464.8,4.25315]
[1719894955757,3.09543833,3465.5,3464.8,4.25315]
[1719894955959,2.88558,3465.5,3464.8,5.3074021]
[1719894956570,2.88558,3465.5,3464.9,2.4871]
[1719894962580,5.31174,3465.8,3465.0,0.817]
[1719894962781,0.20985465,3465.7,3465.2,3.0747]
[1719894962992,2.88525,3465.9,3465.3,0.939655]
[1719894963172,2.88525,3465.9,3465.2,5.96052]
[1719894963349,2.88519,3466.0,3465.2,5.96052]
[1719894963687,2.88511,3466.1,3465.6,0.817]
[1719894965854,2.88511,3466.1,3465.5,2.2577]
[1719894966673,2.88517,3466.0,3465.5,2.2577]
[1719894980475,0.900478,3465.9,3465.5,2.2577]
[1719894980989,2.88517,3466.0,3465.5,2.2577]
[1719894982009,2.88525,3465.9,3465.5,2.2577]
[1719894989525,2.88525,3465.9,3465.2,2.4556]
[1719894989717,2.88525,3465.9,3465.3,1.367]
[1719894990361,2.88534,3465.8,3465.3,1.367]
[1719895002989,2.88521,3466.0,3465.3,4.25273]
[1719895003987,2.4176,3466.2,3465.4,2.88566]
[1719895004196,2.88484,3466.4,3465.7,0.817]
[1719895004488,2.88484,3466.4,3465.7,3.70241]
[1719895005255,5.27827,3466.5,3465.9,0.817]
[1719895005565,2.88483,3466.4,3466.0,2.2943]
[1719895007872,2.88483,3466.4,3465.8,2.3467]
[1719895008070,5.575613,3466.4,3465.8,0.817]
[1719895008293,5.575613,3466.4,3465.7,2.88541]
[1719895008607,5.28713,3466.4,3465.7,2.88541]
[1719895009397,2.88492,3466.3,3465.7,2.88541]
[1719895012720,5.28713,3466.4,3465.6,2.4041]
[1719895012925,0.817,3465.8,3464.9,5.3333]
[1719895013218,3.489595,3465.7,3464.9,5.21932]
[1719895013413,2.88542,3465.7,3464.9,5.21932]
[1719895013783,2.8855,3465.6,3465.0,0.817]
[1719895019622,2.8855,3465.6,3464.9,5.21938]
[1719895019928,2.8855,3465.6,3465.1,0.817]
[1719895022528,2.8855,3465.6,3465.0,0.55]
[1719895027055,2.88519,3466.0,3465.4,0.817]
[1719895027353,2.3328,3465.7,3465.0,0.55]
[1719895027539,2.8855,3465.6,3465.1,0.817]
[1719895029640,5.21822,3465.7,3465.1,0.817]
[1719895029836,5.21822,3465.7,3465.1,1.475638]
[1719895032363,5.21822,3465.7,3465.1,0.817]
[1719895034273,2.88568,3465.4,3464.7,5.98664]
[1719895034569,2.88568,3465.4,3464.8,0.55]
[1719895034765,2.88575,3465.3,3464.7,5.98664]
[1719895034971,2.88575,3465.3,3464.7,2.57342414]
[1719895035136,2.88575,3465.3,3464.8,0.817]
[1719895050466,2.88575,3465.3,3464.6,2.88633]
[1719895050788,2.4787,3465.1,3464.4,2.88648]
[1719895050981,5.36465,3465.1,3464.5,0.55]
[1719895051577,5.982815,3465.1,3464.2,2.88664]
[1719895051868,5.982815,3465.1,3464.3,1.367]
[1719895052272,5.982815,3465.1,3464.3,0.55]
[1719895052469,2.88608,3464.9,3464.3,0.55]
[1719895052781,2.88608,3464.9,3464.3,1.367]
[1719895053585,2.88617,3464.8,3464.3,0.817]
[1719895055104,2.88601,3465.0,3464.5,0.817]
[1719895055105,2.88609,3464.9,3464.5,0.817]
[1719895056600,2.88609,3464.9,3464.3,0.817]
[1719895056796,2.88609,3464.9,3464.4,0.84233211]
[1719895057006,2.88609,3464.9,3464.3,0.817]
[1719895064240,2.88609,3464.9,3464.2,5.88661]
[1719895064406,2.88609,3464.9,3464.3,0.817]
[1719895070812,2.4472,3464.8,3464.3,0.817]
[1719895078840,5.33339,3464.8,3464.2,3.0]
[1719895079182,6.23703,3464.8,3464.1,3.0]
[1719895079752,6.23703,3464.8,3464.2,0.817]
[1719895080784,6.23703,3464.8,3464.1,3.0]
[1719895080785,5.37166,3464.7,3464.1,3.0]
[1719895080971,5.37166,3464.7,3464.1,3.817]
[1719895081366,5.37166,3464.7,3464.1,0.817]
[1719895081686,2.88652,3464.4,3463.7,3.0]
[1719895081989,2.88652,3464.4,3463.8,0.817]
[1719895082185,2.88652,3464.4,3463.8,3.817]
[1719895082546,2.88652,3464.4,3463.9,3.0]
[1719895082741,2.88652,3464.4,3463.8,0.817]
[1719895084044,2.3042,3464.3,3463.8,0.817]
[1719895085173,2.3042,3464.3,3463.7,2.88708]
[1719895085394,5.19079,3464.3,3463.7,2.88708]
[1719895085573,5.19079,3464.3,3463.7,0.817]
[1719895085775,5.19079,3464.3,3463.5,3.7042]
[1719895085946,5.19079,3464.3,3463.6,0.55]
[1719895086143,2.88673,3464.2,3463.4,5.2163]
[1719895086475,2.4311,3464.1,3463.6,0.817]
[1719895087982,5.19229,3464.3,3463.8,0.817]
[1719895090866,2.3057,3464.3,3463.8,0.817]
[1719895091051,2.88642,3464.5,3463.8,4.68376]
[1719895091360,2.88642,3464.5,3463.8,3.704]
[1719895094356,2.88651,3464.4,3463.8,3.704]
[1719895104308,2.88658,3464.3,3463.8,3.704]
[1719895105012,2.88658,3464.3,3463.8,0.817]
[1719895109022,2.88658,3464.3,3463.7,2.88708]
[1719895109221,2.88658,3464.3,3463.7,3.70408]
[1719895110292,2.88658,3464.3,3463.7,4.99488287]
[1719895112290,2.88658,3464.3,3463.7,3.70408]
[1719895112619,2.88669,3464.2,3463.7,0.817]
[1719895112822,5.31589,3464.2,3463.6,0.817]
[1719895113540,2.88675,3464.1,3463.5,6.0357]
[1719895113695,2.88675,3464.1,3463.6,0.817]
[1719895129078,2.88675,3464.1,3463.4,2.88728]
[1719895129079,2.88675,3464.1,3463.4,3.70428]
[1719895130071,2.3911,3464.0,3463.4,3.70428]
[1719895130255,5.27794,3464.0,3463.4,2.88728]
[1719895130776,5.27794,3464.0,3463.3,0.817]
[1719895130975,5.27794,3464.0,3463.4,0.55]
[1719895132643,2.88693,3463.9,3463.3,0.817]
[1719895133355,2.88721,3463.6,3462.9,5.38534]
[1719895133554,2.88721,3463.6,3462.9,6.20234]
[1719895133776,2.88721,3463.6,3463.0,3.0]
[1719895133974,2.3195,3463.5,3462.8,2.88782]
[1719895134318,5.20676,3463.5,3462.8,0.817]
[1719895134510,2.88733,3463.4,3462.8,0.817]
[1719895138178,2.88733,3463.4,3462.8,2.05433065]
[1719895139577,2.88733,3463.4,3462.8,0.817]
[1719895139777,2.88763,3463.1,3462.4,2.88816]
[1719895140379,2.88763,3463.1,3462.5,0.817]
[1719895142894,2.88712,3463.7,3462.6,2.38725796]
[1719895142895,2.4785,3463.6,3462.6,2.38725796]
[1719895143100,2.88735,3463.4,3463.0,0.817]
[1719895146624,2.88735,3463.4,3462.8,0.817]
[1719895151617,2.8871,3463.7,3463.2,0.817]
[1719895151789,2.88693,3463.9,3463.2,0.817]
[1719895151989,2.88701,3463.8,3463.2,0.817]
[1719895152718,2.88701,3463.8,3463.4,0.817]
[1719895155902,2.88701,3463.8,3463.2,0.817]
[1719895156105,2.2703,3463.7,3463.2,0.817]
[1719895156826,5.15739,3463.7,3463.2,0.817]
[1719895158743,2.88718,3463.6,3463.2,0.817]
[1719895159544,2.88718,3463.6,3463.1,0.817]
[1719895161246,2.88718,3463.6,3462.9,5.27284]
[1719895161412,2.88718,3463.6,3463.0,0.817]
[1719895168937,2.88726,3463.5,3463.0,0.817]
[1719895186167,2.2703,3463.7,3463.0,3.70466]
[1719895186168,5.15744,3463.7,3463.0,3.70466]
[1719895186773,8.0446,3463.7,3463.0,3.70466]
[1719895187174,5.15744,3463.7,3463.0,3.70466]
[1719895187385,2.88716,3463.6,3463.0,3.70466]
[1719895187908,2.2703,3463.7,3463.0,4.418909]
[1719895188209,2.2703,3463.7,3463.2,3.70449]
[1719895192126,2.2703,3463.7,3463.2,2.88749]
[1719895196103,2.2703,3463.7,3463.3,2.88741]
[1719895198735,2.2703,3463.7,3463.3,3.70441]
[1719895201133,2.3066,3464.0,3463.6,2.8871]
[1719895201348,2.3066,3464.0,3463.9,0.817]
[1719895202031,2.3066,3464.0,3463.7,3.70407]
[1719895202731,2.2527,3464.3,3463.9,0.817]
[1719895203525,2.2527,3464.3,3463.8,2.88698]
[1719895207049,2.2527,3464.3,3464.0,2.88677]
[1719895207256,2.4006,3464.8,3464.2,0.817]
[1719895207470,2.4006,3464.8,3464.2,3.70366]
[1719895209039,5.28677,3464.8,3464.2,3.70366]
[1719895210150,5.28677,3464.8,3464.2,2.88666]
[1719895220636,2.4006,3464.8,3464.0,3.70377]
[1719895220836,2.88627,3464.7,3464.0,3.70377]
[1719895221982,3.010969,3464.8,3464.1,2.88672]
[1719895222134,3.010969,3464.8,3464.2,0.817]
[1719895222465,5.20934,3465.1,3464.3,2.88658]
[1719895222635,5.20934,3465.1,3464.4,0.817]
[1719895222836,2.886,3465.0,3464.4,0.817]
[1719895225272,2.886,3465.0,3464.3,2.88658]
[1719895225443,2.886,3465.0,3464.3,3.70358]
[1719895225642,2.88583,3465.2,3464.7,0.817]
[1719895228749,2.2813,3465.4,3464.8,2.88615]
[1719895228949,2.2813,3465.4,3464.9,0.817]
[1719895229945,2.2813,3465.4,3464.8,2.88615]
[1719895233876,5.16699,3465.4,3464.8,2.88615]
[1719895234218,6.053949,3465.4,3464.8,2.88615]
[1719895236608,6.053949,3465.4,3464.6,2.88626]
[1719895236792,6.053949,3465.4,3464.7,2.88624]
[1719895238580,2.88576,3465.3,3464.7,2.88624]
[1719895246783,2.88584,3465.2,3464.6,3.70331]
[1719895248691,5.3472,3465.1,3464.2,2.88659]
[1719895248903,2.88601,3465.0,3464.5,0.817]
[1719895249112,2.88601,3465.0,3464.1,5.30638]
[1719895249428,2.88608,3464.9,3464.6,0.817]
[1719895252910,2.88608,3464.9,3464.0,2.88675]
[1719895252911,2.3322,3464.7,3464.0,2.88675]
[1719895253110,2.3322,3464.7,3464.2,0.817]
[1719895253620,5.21845,3464.7,3464.2,0.817]
[1719895253953,2.88676,3464.1,3463.0,7.43]
[1719895254151,2.88705,3463.8,3463.1,0.817]
[1719895254649,2.88705,3463.8,3463.0,2.88761]
[1719895254650,3.779367,3463.8,3463.0,2.88761]
[1719895254854,2.88709,3463.7,3463.1,0.817]
[1719895256253,2.88717,3463.6,3463.1,0.817]
[1719895260960,3.1492,3464.1,3463.1,0.817]
[1719895260961,2.88733,3463.5,3463.1,0.817]
[1719895261167,5.19773,3463.5,3462.7,2.3296]
[1719895261459,2.88743,3463.3,3463.0,0.817]
[1719895262349,2.88751,3463.2,3463.0,0.817]
[1719895262745,2.88739,3463.4,3463.0,0.817]
[1719895262944,2.88744,3463.3,3463.0,0.817]
[1719895266031,2.88744,3463.3,3462.8,0.817]
[1719895267335,2.88744,3463.3,3462.8,1.487499]
[1719895268332,5.19768,3463.5,3462.8,1.487499]
[1719895268534,5.19768,3463.5,3463.0,0.817]
[1719895269363,2.88734,3463.4,3463.0,0.817]
[1719895275372,2.88734,3463.4,3462.9,2.3901]
[1719895275556,2.88734,3463.4,3462.8,3.70483]
[1719895277252,2.88734,3463.4,3462.8,4.894462]
[1719895279051,5.36669,3463.7,3463.0,3.7046]
[1719895285695,2.88709,3463.7,3463.2,0.817]
[1719895287704,2.88709,3463.7,3463.4,0.817]
[1719895300717,2.88717,3463.6,3463.4,0.817]
[1719895301118,2.88717,3463.6,3463.1,2.2904]
[1719895301318,2.88717,3463.6,3463.2,0.817]
[1719895304319,2.88727,3463.5,3463.2,0.817]
[1719895306617,2.2691,3463.4,3462.6,5.4392]
[1719895306813,2.88747,3463.3,3463.1,0.817]
[1719895310337,2.8875,3463.2,3463.1,0.817]
[1719895320144,2.8875,3463.2,3462.6,2.4392]
[1719895320446,2.8875,3463.2,3462.3,2.88825]
[1719895320447,2.8875,3463.2,3462.9,0.817]
[1719895320655,0.51566,3463.1,3462.9,0.817]
[1719895321018,2.8875,3463.2,3462.9,0.817]
[1719895321346,2.88768,3463.0,3462.9,0.817]
[1719895321847,2.88777,3462.9,3462.4,2.398]
[1719895322055,2.88777,3462.9,3462.8,0.817]
[1719895324957,2.88777,3462.9,3462.0,2.63805791]
[1719895325172,2.88783,3462.8,3462.7,0.817]
[1719895328961,2.88773,3463.0,3462.7,0.817]
[1719895329163,2.88773,3463.0,3462.9,0.817]
[1719895335184,2.88755,3463.2,3462.9,0.817]
[1719895335838,2.88755,3463.2,3463.1,0.817]
[1719895337167,2.88759,3463.1,3463.0,0.817]
[1719895337385,2.88759,3463.1,3462.5,5.17987]
[1719895337559,2.88759,3463.1,3462.9,0.817]
[1719895347797,2.88751,3463.2,3462.9,0.817]
[1719895349410,2.88751,3463.2,3462.8,0.817]
[1719895349964,2.88733,3463.4,3463.0,0.817]
[1719895353663,5.30534,3463.3,3462.6,2.88799]
[1719895353881,5.30534,3463.3,3462.9,0.817]
[1719895358869,2.88744,3463.3,3462.9,0.817]
[1719895362924,2.88724,3463.6,3462.8,2.88782]
[1719895363130,5.27971,3463.8,3463.4,0.817]
[1719895363311,5.27971,3463.8,3462.9,3.24299848]
[1719895363312,5.27971,3463.8,3463.6,0.817]
[1719895363513,2.88686,3464.0,3463.6,0.817]
[1719895363712,5.27956,3464.0,3463.9,0.817]
[1719895364025,6.832184,3464.0,3463.9,0.817]
[1719895364208,4.439484,3464.0,3463.9,0.817]
[1719895364404,10.24676,3464.1,3463.9,0.817]
[1719895364799,7.36,3464.1,3463.9,0.817]
[1719895367929,7.36,3464.1,3463.8,2.88699]
[1719895368106,7.36,3464.1,3464.0,0.817]
[1719895369044,2.88643,3464.5,3464.0,0.817]
[1719895369248,2.88643,3464.5,3464.2,0.817]
[1719895370303,2.88643,3464.5,3463.8,2.88699]
[1719895370832,2.88643,3464.5,3464.2,0.817]
[1719895371048,2.8865,3464.4,3464.0,0.817]
[1719895373638,2.88659,3464.3,3464.0,0.817]
[1719895374157,2.88659,3464.3,3463.7,2.88705]
[1719895374459,2.88659,3464.3,3464.1,0.817]
[1719895375970,5.29419,3464.3,3464.1,0.817]
[1719895380828,5.29419,3464.3,3463.7,2.88705]
[1719895381162,5.29419,3464.3,3464.1,0.817]
[1719895381747,2.88659,3464.3,3464.1,0.817]
[1719895385442,2.88666,3464.2,3464.1,0.817]
[1719895394292,2.88696,3463.9,3463.4,2.3908]
[1719895394471,2.88702,3463.8,3463.4,2.3908]
[1719895394673,2.88702,3463.8,3463.7,0.817]
[1719895396215,2.88702,3463.8,3463.1,3.28361736]
[1719895396413,2.88702,3463.8,3463.7,0.817]
[1719895400079,2.8869,3464.0,3463.7,0.817]
[1719895400279,2.8869,3464.0,3463.9,0.817]
[1719895401220,2.88677,3464.1,3463.9,0.817]
[1719895409537,2.88683,3464.0,3463.9,0.817]
[1719895410741,2.88683,3464.0,3463.8,0.817]
[1719895411937,2.383,3463.8,3462.9,2.3686]
[1719895412142,2.88731,3463.5,3463.3,0.817]
[1719895417142,2.88731,3463.5,3462.9,2.3686]
[1719895417345,2.88735,3463.4,3462.9,2.3686]
[1719895417529,2.88735,3463.4,3463.3,0.817]
[1719895417860,2.88735,3463.4,3462.7,2.2883]
[1719895418013,2.88743,3463.3,3462.5,3.0]
[1719895418218,2.88758,3463.1,3463.0,0.817]
[1719895428876,2.88758,3463.1,3462.6,0.55]
[1719895429036,2.88758,3463.1,3463.0,0.817]
[1719895442704,2.88801,3462.6,3462.1,2.3156]
[1719895442993,2.88801,3462.6,3462.5,0.817]
[1719895448780,2.88783,3462.8,3462.5,0.817]
[1719895449076,2.88783,3462.8,3462.7,0.817]
[1719895450087,2.88783,3462.8,3462.0,2.4823]
[1719895450289,2.88791,3462.7,3462.6,0.817]
[1719895451781,2.88783,3462.8,3462.6,0.817]
[1719895481992,2.88768,3463.0,3462.6,0.817]
[1719895482317,2.88768,3463.0,3462.8,0.817]
[1719895491187,2.2923,3462.9,3462.8,0.817]
[1719895494877,5.18005,3462.9,3462.8,0.817]
[1719895495906,5.18005,3462.9,3462.3,2.88823]
[1719895496091,5.18005,3462.9,3462.7,0.817]
[1719895497337,2.88783,3462.8,3462.1,2.2669]
[1719895497540,2.88798,3462.7,3462.5,0.817]
[1719895499642,2.888,3462.6,3462.1,2.2669]
[1719895499858,2.888,3462.6,3462.2,0.817]
[1719895500360,2.2728,3462.5,3461.8,2.3043]
[1719895500516,2.88817,3462.4,3462.0,0.817]
[1719895501730,2.88817,3462.4,3462.2,0.817]
[1719895502519,2.888,3462.6,3462.2,0.817]
[1719895502724,2.888,3462.6,3462.4,0.817]
[1719895511143,2.88776,3462.9,3462.5,2.492]
[1719895511345,2.88767,3463.0,3462.8,0.817]
[1719895511664,2.88767,3463.0,3462.5,2.492]
[1719895511665,2.88753,3463.2,3462.9,0.817]
[1719895514401,3.691947,3463.2,3462.9,0.817]
[1719895514886,2.8876,3463.1,3462.9,0.817]
[1719895515383,2.88769,3463.0,3462.5,2.492]
[1719895515591,2.88769,3463.0,3462.6,0.817]
[1719895515959,2.88788,3462.8,3462.2,2.2635]
[1719895516262,2.88788,3462.8,3462.6,0.817]
[1719895516467,2.88791,3462.7,3462.6,0.817]
[1719895516857,2.88791,3462.7,3462.2,2.2635]
[1719895517060,2.88791,3462.7,3462.6,0.817]
[1719895517457,2.88791,3462.7,3462.2,2.2635]
[1719895517651,5.77588,3462.7,3462.6,0.817]
[1719895517878,2.88817,3462.4,3461.7,3.0]
[1719895518076,2.88817,3462.4,3462.3,0.817]
[1719895520288,2.88817,3462.4,3461.7,5.88875]
[1719895520595,2.88817,3462.4,3462.3,0.817]
[1719895526680,2.88826,3462.3,3462.1,0.817]
[1719895526893,2.88826,3462.3,3462.2,0.817]
[1719895528071,2.88826,3462.3,3461.5,2.4076]
[1719895528275,2.88847,3462.1,3461.5,2.4076]
[1719895528477,2.88847,3462.1,3461.7,0.817]
[1719895528808,2.88847,3462.1,3461.9,0.817]
[1719895530102,2.88826,3462.3,3461.9,0.817]
[1719895530312,2.88818,3462.4,3462.2,0.817]
[1719895531912,2.88818,3462.4,3462.3,0.08209962]
[1719895532412,2.88818,3462.4,3462.2,0.817]
[1719895532781,2.88818,3462.4,3462.3,0.08290392]
[1719895532980,2.88818,3462.4,3462.2,0.817]
[1719895533217,2.88818,3462.4,3462.3,0.08290392]
[1719895533517,2.88818,3462.4,3462.2,0.817]
[1719895533729,2.88818,3462.4,3462.3,0.08289716]
[1719895534214,2.88818,3462.4,3462.2,0.817]
[1719895534603,2.88818,3462.4,3462.3,0.08289716]
[1719895535116,2.88818,3462.4,3462.2,0.817]
[1719895535319,2.88823,3462.4,3462.2,0.817]
[1719895536197,4.201863,3462.4,3462.2,0.817]
[1719895537118,4.201863,3462.4,3462.3,0.08289716]
[1719895537329,4.201863,3462.4,3462.2,0.817]
[1719895537622,2.88825,3462.3,3462.1,0.817]
[1719895538987,2.88825,3462.3,3461.7,5.26494]
[1719895539190,2.88825,3462.3,3462.2,0.817]
[1719895542129,2.88825,3462.3,3462.1,0.817]
[1719895543831,2.88825,3462.3,3462.2,0.08298847]
[1719895544035,5.77656,3462.3,3462.2,0.08298847]
[1719895544231,2.88854,3462.0,3461.5,2.445]
[1719895544431,2.88854,3462.0,3461.7,0.817]
[1719895544631,2.88854,3462.0,3461.8,0.817]
[1719895544935,2.88854,3462.0,3461.9,0.08298847]
[1719895545715,2.88854,3462.0,3461.9,0.89998847]
[1719895545904,2.88854,3462.0,3461.9,0.08298847]
[1719895546232,2.88854,3462.0,3461.8,0.817]
[1719895546538,2.88854,3462.0,3461.9,0.08298847]
[1719895548212,2.88835,3462.2,3461.9,0.08298847]